bitfinex/quotes_BTCUSD_20241025
["timestamp","ask_amount","ask_price","bid_price","bid_amount"]
[1729899218523,0.001642,66251.0,66250.0,0.150943]
[1729899218750,0.001642,66251.0,66249.0,0.15050381]
[1729899220029,0.001642,66251.0,66249.0,0.15352223]
[1729899220450,0.001642,66251.0,66250.0,0.16887445]
[1729899220664,0.22610452,66277.0,66265.0,0.150909]
[1729899220665,0.23702376,66266.0,66265.0,0.150909]
[1729899220890,0.22610452,66266.0,66265.0,0.30141281]
[1729899221370,0.22610452,66277.0,66268.0,0.150902]
[1729899221593,0.22610452,66277.0,66269.0,0.36172369]
[1729899221801,0.22610452,66270.0,66244.0,0.005]
[1729899222006,0.22610452,66270.0,66243.0,0.01]
[1729899222007,0.23110452,66286.0,66263.0,0.0496745]
[1729899222216,0.22610452,66270.0,66264.0,0.15352165]
[1729899222463,0.22610452,66278.0,66264.0,0.15050381]
[1729899222669,0.01091539,66277.0,66264.0,0.21083009]
[1729899222878,0.01091539,66277.0,66264.0,0.15050381]
[1729899223732,0.150899,66270.0,66263.0,0.0496079]
[1729899223960,0.01091666,66269.0,66263.0,0.0496079]
[1729899224177,0.150894,66272.0,66249.0,0.150943]
[1729899224397,0.23702118,66271.0,66250.0,0.22221856]
[1729899224615,0.01091666,66270.0,66252.0,0.150938]
[1729899224865,0.01091894,66270.0,66253.0,0.15050381]
[1729899225280,0.22610452,66264.0,66253.0,0.15050381]
[1729899225502,0.01091894,66270.0,66253.0,0.15050381]
[1729899225503,0.301795,66270.0,66253.0,0.15050381]
[1729899225747,0.22610452,66264.0,66247.0,0.0496585]
[1729899225961,0.01091983,66263.0,66254.0,0.00301818]
[1729899226177,0.22610452,66262.0,66248.0,0.15050381]
[1729899226376,0.301795,66270.0,66249.0,0.00301832]
[1729899226590,0.22610452,66263.0,66250.0,0.15050381]
[1729899226802,0.01091944,66262.0,66250.0,0.15050381]
[1729899227034,0.01091944,66262.0,66251.0,0.00301838]
[1729899227261,0.22610452,66261.0,66252.0,0.15050381]
[1729899227479,0.01091825,66260.0,66256.0,0.150927]
[1729899227700,0.01091825,66260.0,66252.0,0.20101178]
[1729899227701,0.23702277,66270.0,66257.0,0.15352212]
[1729899227940,0.22610452,66270.0,66269.0,0.1509]
[1729899228149,0.22610452,66270.0,66269.0,0.30140381]
[1729899228361,0.001642,66278.0,66270.0,0.150897]
[1729899228591,0.001642,66278.0,66268.0,0.00301765]
[1729899228592,0.22610452,66277.0,66271.0,0.18144566]
[1729899228870,0.22610452,66277.0,66271.0,0.15050381]
[1729899229079,0.001642,66278.0,66271.0,0.15050381]
[1729899229515,0.22610452,66277.0,66271.0,0.15050381]
[1729899229946,0.001642,66278.0,66263.0,0.0491877]
[1729899230162,0.001642,66278.0,66264.0,0.15352162]
[1729899230375,0.22610452,66277.0,66265.0,0.02027093]
[1729899230587,0.22610452,66277.0,66273.0,0.15089]
[1729899230804,0.001642,66278.0,66277.0,0.150881]
[1729899231021,0.001642,66278.0,66277.0,0.304402]
[1729899231496,0.001642,66278.0,66277.0,0.30138481]
[1729899231707,0.001642,66278.0,66277.0,0.39237779]
[1729899232158,0.001642,66278.0,66277.0,0.15050381]
[1729899232611,0.001642,66278.0,66267.0,0.301809]
[1729899232818,0.001642,66278.0,66268.0,0.15050381]
[1729899232819,0.22610452,66276.0,66268.0,0.15050381]
[1729899233030,0.001642,66278.0,66268.0,0.15050381]
[1729899233233,0.22610452,66277.0,66268.0,0.15050381]
[1729899234714,0.001642,66278.0,66268.0,0.15050381]
[1729899234936,0.001642,66278.0,66269.0,0.00301759]
[1729899235195,0.22610452,66277.0,66270.0,0.21112745]
[1729899235417,0.001644,66277.0,66276.0,0.150884]
[1729899235619,0.001644,66277.0,66276.0,0.30138781]
[1729899235821,0.001644,66277.0,66276.0,0.30440494]
[1729899236243,0.001644,66277.0,66276.0,0.30940494]
[1729899236509,0.22610452,66301.0,66293.0,0.150845]
[1729899236716,0.22610452,66301.0,66293.0,0.30134881]
[1729899236922,0.22610452,66301.0,66300.0,0.150829]
[1729899237121,0.22610452,66301.0,66300.0,0.30133281]
[1729899237324,0.22610452,66309.0,66300.0,0.15050381]
[1729899237553,0.22610452,66309.0,66296.0,0.301676]
[1729899237554,0.22610452,66309.0,66303.0,0.150821]
[1729899237782,0.22610452,66309.0,66304.0,0.15050381]
[1729899237998,0.22781252,66318.0,66304.0,0.15050381]
[1729899238208,0.22610452,66311.0,66305.0,0.150817]
[1729899238412,0.22781252,66318.0,66304.0,0.15050381]
[1729899238621,0.22781252,66318.0,66305.0,0.03465498]
[1729899239047,0.22781252,66318.0,66304.0,0.15050381]
[1729899239257,0.22781252,66318.0,66304.0,0.20030171]
[1729899239909,0.37860252,66318.0,66304.0,0.0497979]
[1729899240129,0.150794,66316.0,66304.0,0.0497979]
[1729899240378,0.52939152,66318.0,66295.0,0.37694452]
[1729899240379,0.37860152,66318.0,66295.0,0.37694452]
[1729899240583,0.001708,66318.0,66299.0,0.15083]
[1729899240793,0.22610452,66315.0,66297.0,0.301672]
[1729899241017,0.001708,66318.0,66302.0,0.22610452]
[1729899241225,0.22610452,66316.0,66303.0,0.15050381]
[1729899241434,0.22610452,66316.0,66305.0,0.150818]
[1729899241712,0.22610452,66309.0,66306.0,0.15050381]
[1729899241922,0.22610452,66316.0,66302.0,0.0490069]
[1729899242137,0.22610452,66307.0,66302.0,0.0490069]
[1729899242341,0.301665,66299.0,66287.0,0.22610452]
[1729899242550,0.301665,66299.0,66288.0,0.22610452]
[1729899242551,0.15050381,66298.0,66288.0,0.22610452]
[1729899242770,0.150856,66288.0,66287.0,0.0491928]
[1729899243037,0.150856,66288.0,66264.0,0.22610452]
[1729899243038,0.005,66293.0,66278.0,0.22610452]
[1729899243255,0.01,66291.0,66272.0,0.22610452]
[1729899243471,0.005,66291.0,66272.0,0.22610452]
[1729899243681,0.22610452,66289.0,66272.0,0.22610452]
[1729899243885,0.37660833,66288.0,66272.0,0.22610452]
[1729899244106,0.22610452,66281.0,66271.0,0.0498726]
[1729899244346,0.15050381,66281.0,66271.0,0.0498726]
[1729899244558,0.150862,66286.0,66264.0,0.150911]
[1729899244751,0.22610452,66281.0,66265.0,0.03770155]
[1729899244958,0.22610452,66281.0,66264.0,0.15050381]
[1729899245377,0.005,66292.0,66264.0,0.15050381]
[1729899245378,1.2589,66304.0,66280.0,0.22610452]
[1729899245615,1.2589,66304.0,66273.0,0.301782]
[1729899245616,0.22610452,66286.0,66281.0,0.15050381]
[1729899245819,0.22610452,66286.0,66273.0,0.005]
[1729899246029,0.22610452,66293.0,66274.0,0.37660833]
[1729899246239,0.22610452,66286.0,66280.0,0.301749]
[1729899246454,0.22610452,66286.0,66281.0,0.15050381]
[1729899246687,0.22610452,66293.0,66281.0,0.15050381]
[1729899247409,0.22610452,66292.0,66283.0,0.150867]
[1729899247662,0.22610452,66292.0,66284.0,0.15050381]
[1729899247893,0.22610452,66292.0,66286.0,0.15086]
[1729899248165,0.082,66305.0,66284.0,0.15050381]
[1729899248381,0.01093038,66299.0,66284.0,0.15050381]
[1729899248639,0.000821,66286.0,66285.0,0.150863]
[1729899248935,0.000821,66286.0,66285.0,0.30336681]
[1729899249198,0.22610452,66306.0,66298.0,0.155834]
[1729899249199,0.22610452,66299.0,66298.0,0.155834]
[1729899249463,0.22610452,66299.0,66298.0,0.30633781]
[1729899249888,0.22610452,66306.0,66305.0,0.150818]
[1729899250100,0.22610452,66306.0,66305.0,0.15050381]
[1729899250309,0.04379433,66308.0,66305.0,0.15050381]
[1729899250522,0.04379433,66308.0,66305.0,0.19116855]
[1729899250782,0.04379433,66308.0,66305.0,0.15050381]
[1729899251003,0.04379433,66308.0,66306.0,0.15050381]
[1729899251209,0.04379433,66308.0,66307.0,0.150813]
[1729899251426,0.04379433,66308.0,66307.0,0.30131681]
[1729899251639,0.04379433,66308.0,66307.0,0.36261199]
[1729899251852,0.04379433,66308.0,66307.0,0.36761199]
[1729899252118,0.00171,66329.0,66317.0,0.15079]
[1729899252335,0.00171,66329.0,66328.0,0.155765]
[1729899252560,0.22610452,66340.0,66339.0,0.15074]
[1729899252775,0.001708,66345.0,66343.0,0.150731]
[1729899253241,0.001708,66345.0,66343.0,0.30123481]
[1729899253474,0.001708,66345.0,66343.0,0.39215319]
[1729899253912,0.001708,66345.0,66343.0,0.15050381]
[1729899254130,0.001708,66345.0,66340.0,0.22610452]
[1729899254349,0.001708,66345.0,66333.0,0.22610452]
[1729899254566,0.001708,66345.0,66340.0,0.22610452]
[1729899254788,0.001708,66345.0,66341.0,0.15050381]
[1729899255008,0.001708,66345.0,66343.0,0.150731]
[1729899255224,0.001708,66345.0,66343.0,0.30123481]
[1729899255923,0.001708,66345.0,66343.0,0.30623481]
[1729899256767,0.001708,66345.0,66343.0,0.30123481]
[1729899256990,0.001708,66345.0,66343.0,0.30623481]
[1729899257257,0.001708,66345.0,66343.0,0.36351053]
[1729899257474,0.001708,66345.0,66331.0,0.22610452]
[1729899257680,0.001708,66345.0,66340.0,0.150737]
[1729899257891,0.001708,66345.0,66338.0,0.150742]
[1729899258118,0.001708,66345.0,66338.0,0.30124581]
[1729899258341,0.001708,66345.0,66339.0,0.18062839]
[1729899258597,0.001708,66345.0,66340.0,0.22610452]
[1729899258815,0.001708,66345.0,66340.0,0.15050381]
[1729899259041,0.001708,66345.0,66340.0,0.30124181]
[1729899259259,0.001708,66345.0,66340.0,0.15050381]
[1729899259480,0.001708,66345.0,66332.0,0.22610452]
[1729899259481,0.001708,66345.0,66343.0,0.150731]
[1729899259702,0.001708,66345.0,66343.0,0.31123481]
[1729899259946,0.001708,66345.0,66343.0,0.31823481]
[1729899260396,0.22610452,66363.0,66362.0,0.150688]
[1729899260611,0.22610452,66363.0,66362.0,0.30119181]
[1729899260818,0.00082,66367.0,66365.0,0.15068]
[1729899261040,0.00082,66367.0,66366.0,0.15050381]
[1729899261259,0.00082,66367.0,66354.0,0.005]
[1729899261521,0.00082,66367.0,66358.0,0.22610452]
[1729899261751,0.00082,66367.0,66359.0,0.15050381]
[1729899261958,0.00082,66367.0,66359.0,0.37679852]
[1729899262396,0.00082,66367.0,66359.0,0.22610452]
[1729899262612,0.00082,66367.0,66353.0,0.301418]
[1729899262826,0.00082,66367.0,66354.0,0.15050381]
[1729899263699,0.00082,66367.0,66356.0,0.150702]
[1729899263882,0.00082,66367.0,66357.0,0.15050381]
[1729899264119,0.00082,66367.0,66358.0,0.150696]
[1729899264360,0.00082,66367.0,66353.0,0.35963292]
[1729899264361,0.00082,66367.0,66359.0,0.15050381]
[1729899264819,0.22610452,66366.0,66353.0,0.05821792]
[1729899265287,0.00082,66367.0,66365.0,0.37678452]
[1729899265289,0.00082,66367.0,66357.0,0.150698]
[1729899265520,0.00082,66367.0,66358.0,0.15050381]
[1729899265777,0.00082,66367.0,66358.0,0.30119981]
[1729899266050,0.00082,66367.0,66358.0,0.15050381]
[1729899266271,0.00082,66367.0,66358.0,0.30120081]
[1729899266508,0.00082,66367.0,66358.0,0.38407224]
[1729899266744,0.00082,66367.0,66349.0,0.0496567]
[1729899266981,0.00082,66367.0,66355.0,0.22610452]
[1729899267763,0.00082,66367.0,66349.0,0.0496567]
[1729899268009,0.35010381,66366.0,66359.0,0.22610452]
[1729899268262,0.01090953,66365.0,66352.0,0.22610452]
[1729899268757,0.01090953,66365.0,66352.0,0.27520242]
[1729899269230,0.1996,66366.0,66352.0,0.27520242]
[1729899269471,0.1996,66366.0,66353.0,0.19309575]
[1729899269940,0.1996,66366.0,66353.0,0.56990827]
[1729899270211,0.1996,66366.0,66352.0,0.0490979]
[1729899270481,0.1996,66366.0,66354.0,0.22610452]
[1729899270717,0.1996,66366.0,66353.0,0.22610452]
[1729899270934,0.01091875,66365.0,66353.0,0.22610452]
[1729899271676,0.22610452,66364.0,66352.0,0.0490979]
[1729899271912,0.150704,66355.0,66352.0,0.0490979]
[1729899272162,0.150704,66355.0,66346.0,0.22610452]
[1729899272163,0.0821,66357.0,66353.0,0.22610452]
[1729899272390,0.0821,66357.0,66345.0,0.0495766]
[1729899272652,0.24353157,66357.0,66345.0,0.0495766]
[1729899272926,0.150724,66346.0,66345.0,0.0495766]
[1729899273135,0.16143157,66356.0,66346.0,0.22610452]
[1729899273136,0.15050381,66356.0,66346.0,0.22610452]
[1729899273370,0.23703363,66355.0,66333.0,0.00164]
[1729899273603,0.301449,66346.0,66342.0,0.0496088]
[1729899273831,0.301449,66346.0,66336.0,0.22610452]
[1729899273832,0.150745,66337.0,66336.0,0.22610452]
[1729899274086,0.51177792,66337.0,66336.0,0.22610452]
[1729899274315,0.150752,66334.0,66333.0,0.00164]
[1729899274525,0.150752,66334.0,66292.0,0.01573129]
[1729899274526,0.15079,66317.0,66297.0,0.150835]
[1729899274737,0.09302911,66317.0,66297.0,0.301668]
[1729899274963,0.09302911,66317.0,66296.0,0.005]
[1729899274964,0.09302141,66317.0,66292.0,0.005]
[1729899275183,0.232891,66317.0,66299.0,0.150831]
[1729899275397,0.232891,66317.0,66298.0,0.301667]
[1729899275398,0.0821,66317.0,66298.0,0.301667]
[1729899275609,0.0821,66317.0,66303.0,0.0498372]
[1729899276251,0.09301621,66317.0,66303.0,0.2006582]
[1729899276480,0.0821,66317.0,66303.0,0.0498372]
[1729899276985,0.22610452,66316.0,66303.0,0.0498372]
[1729899277219,0.1833,66314.0,66303.0,0.0498372]
[1729899277452,0.15082,66304.0,66303.0,0.0498372]
[1729899277695,0.16141532,66304.0,66296.0,0.22610452]
[1729899277935,0.31255951,66303.0,66296.0,0.22610452]
[1729899278165,0.150827,66301.0,66290.0,0.0498889]
[1729899278421,0.150799,66313.0,66297.0,0.22610452]
[1729899278628,0.22610452,66309.0,66296.0,0.15050381]
[1729899278889,0.01090779,66308.0,66296.0,0.15050381]
[1729899279376,0.01090779,66308.0,66297.0,0.22610452]
[1729899279611,0.301599,66313.0,66297.0,0.22610452]
[1729899279839,0.46330919,66312.0,66297.0,0.22610452]
[1729899280082,0.01090219,66311.0,66297.0,0.22610452]
[1729899280764,0.301622,66308.0,66298.0,0.22610452]
[1729899281037,0.15082,66304.0,66295.0,0.0499269]
[1729899281242,0.150816,66306.0,66299.0,0.22610452]
[1729899281464,0.150821,66304.0,66284.0,0.301728]
[1729899281677,0.150819,66305.0,66295.0,0.22610452]
[1729899281843,0.150817,66306.0,66292.0,0.04999]
[1729899282209,0.301622,66308.0,66292.0,0.04999]
[1729899282433,0.452446,66306.0,66292.0,0.04999]
[1729899282646,0.150828,66301.0,66292.0,0.04999]
[1729899282847,0.45213481,66306.0,66298.0,0.00164]
[1729899283049,0.22610452,66308.0,66298.0,0.00164]
[1729899283252,0.150831,66299.0,66298.0,0.00164]
[1729899283459,0.3122206,66299.0,66298.0,0.00164]
[1729899284101,0.0108774,66299.0,66298.0,0.00164]
[1729899284297,0.150831,66299.0,66298.0,0.00164]
[1729899284522,0.1617084,66299.0,66298.0,0.00164]
[1729899285356,0.150831,66299.0,66298.0,0.00164]
[1729899286188,0.0822,66306.0,66298.0,0.00164]
[1729899286398,0.23270381,66306.0,66298.0,0.00164]
[1729899286610,0.150828,66301.0,66298.0,0.00164]
[1729899286817,0.150825,66302.0,66298.0,0.00164]
[1729899287030,0.37693552,66299.0,66298.0,0.00164]
[1729899287249,0.150831,66299.0,66298.0,0.00164]
[1729899288245,0.39179769,66299.0,66298.0,0.00164]
[1729899288394,0.31218652,66299.0,66298.0,0.00164]
[1729899288849,0.30133481,66299.0,66298.0,0.00164]
[1729899289061,0.150831,66299.0,66298.0,0.00164]
[1729899289276,0.0822,66306.0,66298.0,0.00164]
[1729899289500,0.150831,66300.0,66298.0,0.00164]
[1729899289907,0.150831,66299.0,66298.0,0.00164]
[1729899290359,0.150829,66300.0,66298.0,0.00164]
[1729899291000,0.0822,66306.0,66299.0,0.22610452]
[1729899291244,0.150804,66312.0,66298.0,0.00164]
[1729899291459,0.22610452,66308.0,66298.0,0.00164]
[1729899291682,0.15050381,66311.0,66298.0,0.00164]
[1729899292119,0.15050381,66311.0,66299.0,0.22610452]
[1729899292358,0.150814,66307.0,66298.0,0.00164]
[1729899292578,1.2539,66317.0,66306.0,0.22610452]
[1729899292787,0.22610452,66315.0,66300.0,0.005]
[1729899292994,0.22610452,66315.0,66300.0,0.01]
[1729899293851,0.37689852,66316.0,66303.0,0.005]
[1729899294072,0.22610452,66316.0,66303.0,0.005]
[1729899294279,0.0822,66318.0,66306.0,0.22610452]
[1729899294498,0.301529,66329.0,66311.0,0.005]
[1729899294499,0.22610452,66316.0,66311.0,0.005]
[1729899294711,0.01087515,66322.0,66311.0,0.005]
[1729899294925,0.301549,66325.0,66311.0,0.005]
[1729899295147,0.22610452,66316.0,66310.0,0.005]
[1729899295404,0.16138178,66322.0,66310.0,0.005]
[1729899295405,0.01088598,66315.0,66311.0,0.22610452]
[1729899295605,0.16167505,66318.0,66310.0,0.005]
[1729899295853,0.150791,66317.0,66305.0,0.005]
[1729899296061,0.45206281,66322.0,66305.0,0.005]
[1729899296062,0.150787,66319.0,66306.0,0.22610452]
[1729899296268,0.01088747,66318.0,66307.0,0.02861045]
[1729899296503,0.22610452,66315.0,66309.0,0.005]
[1729899296711,0.22610452,66322.0,66308.0,0.01]
[1729899296915,0.150785,66320.0,66308.0,0.01]
[1729899297141,0.150791,66317.0,66307.0,0.005]
[1729899297338,0.01089828,66319.0,66304.0,0.0497614]
[1729899297339,0.01089828,66316.0,66308.0,0.23110452]
[1729899297544,0.150787,66319.0,66308.0,0.23110452]
[1729899297780,0.01091647,66318.0,66306.0,0.01]
[1729899298026,0.150788,66319.0,66307.0,0.23110452]
[1729899298239,0.22610452,66315.0,66305.0,0.01]
[1729899298464,0.01091647,66314.0,66306.0,0.22610452]
[1729899298688,0.301572,66319.0,66304.0,0.0497614]
[1729899298689,0.301586,66316.0,66304.0,0.0497614]
[1729899298889,0.01091647,66318.0,66305.0,0.005]
[1729899298890,0.01091647,66315.0,66305.0,0.005]
[1729899299094,0.01091647,66317.0,66307.0,0.005]
[1729899299305,0.01091647,66317.0,66305.0,0.005]
[1729899299306,0.22610452,66315.0,66305.0,0.005]
[1729899299514,0.01091647,66314.0,66307.0,0.005]
[1729899299766,0.52766752,66322.0,66307.0,0.005]
[1729899299767,0.01091647,66318.0,66307.0,0.005]
[1729899299964,0.01091647,66321.0,66308.0,0.04657745]
[1729899300163,0.150786,66320.0,66307.0,0.005]
[1729899300309,0.01091647,66319.0,66307.0,0.005]
[1729899300515,0.01091647,66319.0,66308.0,0.22610452]
[1729899300718,0.150778,66323.0,66308.0,0.22610452]
[1729899300931,0.22610452,66321.0,66308.0,0.22610452]
[1729899301334,0.01094782,66320.0,66308.0,0.25759977]
[1729899301756,0.22610452,66319.0,66308.0,0.25759977]
[1729899301957,0.01094782,66318.0,66308.0,0.25759977]
[1729899302178,0.01094782,66318.0,66309.0,0.22610452]
[1729899302386,0.150773,66325.0,66310.0,0.005]
[1729899302596,0.22610452,66321.0,66310.0,0.005]
[1729899302803,0.01094782,66320.0,66310.0,0.005]
[1729899303022,0.01094782,66319.0,66310.0,0.005]
[1729899303249,0.22610452,66314.0,66304.0,0.0497614]
[1729899303537,0.15050381,66318.0,66305.0,0.22610452]
[1729899303755,0.15050381,66318.0,66306.0,0.22610452]
[1729899303756,0.150815,66307.0,66306.0,0.22610452]
[1729899303983,0.25,66318.0,66306.0,0.22610452]
[1729899303984,0.30129481,66317.0,66306.0,0.22610452]
[1729899304204,0.301514,66332.0,66307.0,0.03758659]
[1729899304423,0.002,66351.0,66320.0,0.01]
[1729899304424,0.22610452,66321.0,66320.0,0.01]
[1729899304633,0.22610452,66328.0,66320.0,0.01]
[1729899304863,0.37660833,66336.0,66325.0,0.005]
[1729899304864,0.01099989,66327.0,66325.0,0.005]
[1729899305118,0.01100127,66335.0,66326.0,0.16851884]
[1729899305370,0.01100127,66334.0,66332.0,0.005]
[1729899305633,0.01100127,66335.0,66334.0,0.01]
[1729899305883,0.22610452,66349.0,66340.0,0.005]
[1729899305884,0.22610452,66341.0,66340.0,0.005]
[1729899306126,0.23710579,66341.0,66340.0,0.005]
[1729899306354,0.01100127,66341.0,66340.0,0.31624181]
[1729899306587,0.001708,66376.0,66346.0,0.150724]
[1729899306588,0.01100127,66352.0,66346.0,0.150724]
[1729899306804,0.01100127,66355.0,66349.0,0.01]
[1729899307022,0.01100127,66355.0,66352.0,0.005]
[1729899307458,0.00082,66367.0,66352.0,0.005]
[1729899307459,0.01100127,66362.0,66352.0,0.005]
[1729899308320,0.01100127,66362.0,66339.0,0.0592045]
[1729899308321,0.15153,66353.0,66339.0,0.0592045]
[1729899308560,0.01100127,66352.0,66342.0,0.005]
[1729899308764,0.00082,66353.0,66342.0,0.005]
[1729899309865,0.01182127,66353.0,66342.0,0.005]
[1729899310298,0.00082,66353.0,66342.0,0.005]
[1729899310499,0.00082,66353.0,66340.0,0.005]
[1729899310716,0.00082,66353.0,66341.0,0.22610452]
[1729899310924,0.150712,66352.0,66342.0,0.005]
[1729899311376,0.150712,66352.0,66338.0,0.0499025]
[1729899311377,0.01093849,66351.0,66338.0,0.0499025]
[1729899311580,0.150723,66347.0,66340.0,0.22610452]
[1729899311786,0.01093849,66346.0,66340.0,0.22610452]
[1729899312007,0.01093849,66346.0,66338.0,0.005]
[1729899312008,0.150721,66348.0,66331.0,0.22610452]
[1729899312009,0.23704301,66347.0,66331.0,0.23110452]
[1729899312223,0.30148,66340.0,66333.0,0.049847]
[1729899312461,0.150752,66334.0,66333.0,0.049847]
[1729899312896,0.01093849,66334.0,66317.0,0.005]
[1729899313097,0.150768,66327.0,66320.0,0.0493157]
[1729899313313,0.01093849,66326.0,66320.0,0.0493157]
[1729899313521,0.150769,66327.0,66320.0,0.0493157]
[1729899313743,0.301509,66333.0,66317.0,0.005]
[1729899313744,0.01093849,66326.0,66317.0,0.005]
[1729899313960,0.150768,66327.0,66317.0,0.005]
[1729899314179,0.002,66343.0,66313.0,0.0498279]
[1729899314180,0.23704301,66326.0,66313.0,0.0498279]
[1729899314403,0.15050381,66325.0,66313.0,0.0498279]
[1729899314633,0.15050381,66325.0,66314.0,0.22610452]
[1729899314866,0.15050381,66325.0,66304.0,0.22610452]
[1729899314867,0.25,66322.0,66304.0,0.27597882]
[1729899315095,0.150802,66312.0,66311.0,0.22610452]
[1729899315319,0.150818,66305.0,66304.0,0.22610452]
[1729899315535,0.16174758,66305.0,66304.0,0.22610452]
[1729899315755,0.30164,66304.0,66298.0,0.0512001]
[1729899315969,0.01092958,66303.0,66299.0,0.22610452]
[1729899316183,0.150831,66299.0,66298.0,0.00164]
[1729899316419,0.16176058,66299.0,66298.0,0.00164]
[1729899316630,0.01092958,66299.0,66298.0,0.00164]
[1729899316861,0.150831,66299.0,66298.0,0.00164]
[1729899317313,0.16176058,66299.0,66298.0,0.00164]
[1729899317548,0.35860575,66299.0,66298.0,0.00164]
[1729899317792,0.56226439,66299.0,66298.0,0.00164]
[1729899319124,0.64176439,66299.0,66298.0,0.00164]
[1729899319742,0.15087,66282.0,66281.0,0.27597742]
[1729899319954,0.31230339,66282.0,66281.0,0.27597742]
[1729899320161,0.150872,66281.0,66270.0,0.22610452]
[1729899320378,0.30137581,66281.0,66270.0,0.22610452]
[1729899320581,0.31229222,66281.0,66270.0,0.22610452]
[1729899320794,0.31229222,66281.0,66268.0,0.0498698]
[1729899320795,0.42906584,66281.0,66268.0,0.0498698]
[1729899320993,0.31229222,66281.0,66271.0,0.22610452]
[1729899321202,0.31229222,66281.0,66272.0,0.22610452]
[1729899321417,0.31229222,66281.0,66273.0,0.22610452]
[1729899321834,0.31429222,66281.0,66273.0,0.22610452]
[1729899322046,0.31429222,66281.0,66274.0,0.22610452]
[1729899322259,0.31429222,66281.0,66268.0,0.0498698]
[1729899323145,0.62707721,66281.0,66271.0,0.22610452]
[1729899323363,0.58259222,66281.0,66271.0,0.22610452]
[1729899323584,0.31229222,66281.0,66268.0,0.0498698]
[1729899323818,0.56429222,66281.0,66268.0,0.0498698]
[1729899324025,0.56426454,66281.0,66268.0,0.0498698]
[1729899324523,0.56226462,66281.0,66268.0,0.0498698]
[1729899324747,0.56426462,66281.0,66268.0,0.0498698]
[1729899325636,0.1509,66269.0,66268.0,0.0498698]
[1729899325853,0.16178881,66269.0,66268.0,0.0498698]
[1729899326067,0.150904,66267.0,66263.0,0.22610452]
[1729899326269,0.16179281,66267.0,66263.0,0.22610452]
[1729899326482,0.150904,66267.0,66255.0,0.0496198]
[1729899326706,0.40050381,66281.0,66255.0,0.0546198]
[1729899326942,0.40050381,66281.0,66259.0,0.005]
[1729899326943,0.452631,66279.0,66259.0,0.005]
[1729899327177,0.150896,66271.0,66259.0,0.005]
[1729899327402,0.301772,66275.0,66259.0,0.005]
[1729899327612,0.150894,66272.0,66259.0,0.000853]
[1729899327819,0.01085831,66274.0,66259.0,0.000853]
[1729899328030,0.150895,66271.0,66259.0,0.000853]
[1729899328230,0.301763,66278.0,66259.0,0.000853]
[1729899328438,0.301759,66278.0,66259.0,0.000853]
[1729899328655,0.301763,66277.0,66259.0,0.000853]
[1729899328863,0.150892,66273.0,66259.0,0.000853]
[1729899329078,0.002,66284.0,66259.0,0.000853]
[1729899329079,0.15465081,66281.0,66259.0,0.000853]
[1729899329300,0.150896,66271.0,66259.0,0.000853]
[1729899329715,0.22610452,66268.0,66256.0,0.005]
[1729899329936,0.15050381,66270.0,66258.0,0.22610452]
[1729899329937,0.002,66265.0,66258.0,0.22610452]
[1729899330149,0.15050381,66264.0,66258.0,0.22610452]
[1729899330352,0.30141681,66264.0,66258.0,0.22610452]
[1729899330577,0.15050381,66264.0,66255.0,0.0496198]
[1729899330796,0.004147,66281.0,66259.0,0.22610452]
[1729899331011,0.22610452,66274.0,66263.0,0.000853]
[1729899331231,0.22610452,66274.0,66263.0,0.005853]
[1729899331696,0.45224881,66281.0,66263.0,0.005853]
[1729899331697,0.15050381,66281.0,66266.0,0.000853]
[1729899331974,0.15050381,66281.0,66267.0,0.000853]
[1729899331975,0.22610452,66273.0,66267.0,0.000853]
[1729899332201,0.15050381,66281.0,66268.0,0.22610452]
[1729899332408,0.15050381,66281.0,66267.0,0.000853]
[1729899332409,0.150876,66280.0,66267.0,0.000853]
[1729899332847,0.15050381,66281.0,66269.0,0.22610452]
[1729899333075,0.30137781,66281.0,66269.0,0.22610452]
[1729899333499,0.22610452,66289.0,66272.0,0.000853]
[1729899333709,0.22610452,66282.0,66272.0,0.000853]
[1729899333919,0.22610452,66282.0,66270.0,0.005]
[1729899334120,0.150863,66286.0,66272.0,0.22695752]
[1729899334335,0.22610452,66289.0,66274.0,0.000853]
[1729899334568,0.47610452,66328.0,66283.0,0.000853]
[1729899334569,0.22610452,66288.0,66283.0,0.000853]
[1729899334777,0.22610452,66297.0,66283.0,0.000853]
[1729899334778,0.22610452,66297.0,66286.0,0.005853]
[1729899335208,0.150825,66302.0,66286.0,0.005853]
[1729899335418,0.22610452,66306.0,66286.0,0.005853]
[1729899335419,0.22610452,66306.0,66287.0,0.000853]
[1729899335627,0.15082,66304.0,66287.0,0.000853]
[1729899335841,0.22610452,66306.0,66287.0,0.000853]
[1729899336049,0.301607,66312.0,66296.0,0.22610452]
[1729899336276,0.22610452,66306.0,66296.0,0.005]
[1729899336488,0.002,66326.0,66296.0,0.005]
[1729899336489,0.151597,66323.0,66305.0,0.005]
[1729899336706,0.151597,66323.0,66304.0,0.000853]
[1729899336707,0.00082,66323.0,66309.0,0.000853]
[1729899336924,0.00082,66323.0,66297.0,0.15050381]
[1729899336925,0.00082,66323.0,66317.0,0.000853]
[1729899337148,0.00082,66323.0,66318.0,0.000853]
[1729899337353,0.00082,66323.0,66315.0,0.000853]
[1729899337820,0.00082,66323.0,66309.0,0.000853]
[1729899338026,0.150788,66319.0,66311.0,0.22610452]
[1729899338305,0.150788,66319.0,66307.0,0.0490763]
[1729899338306,0.15050381,66319.0,66307.0,0.0490763]
[1729899338515,0.15050381,66318.0,66309.0,0.22610452]
[1729899338723,0.15081,66309.0,66307.0,0.0490763]
[1729899338956,0.150811,66308.0,66307.0,0.0490763]
[1729899339173,0.002,66316.0,66294.0,0.000853]
[1729899339174,0.15082,66304.0,66294.0,0.000853]
[1729899339402,0.15050381,66318.0,66296.0,0.000853]
[1729899339403,0.150804,66312.0,66296.0,0.000853]
[1729899339660,0.16142534,66311.0,66296.0,0.000853]
[1729899339872,0.22610452,66307.0,66296.0,0.000853]
[1729899340122,0.22610452,66307.0,66294.0,0.0497123]
[1729899340123,0.15084,66295.0,66294.0,0.0497123]
[1729899340561,0.15085,66291.0,66290.0,0.22610452]
[1729899340765,0.31260383,66295.0,66290.0,0.22610452]
[1729899340766,0.01092083,66295.0,66290.0,0.22610452]